bitfinex-derivatives/quotes_ETHF0:USTF0_20210107
["timestamp","ask_amount","ask_price","bid_price","bid_amount"]
[1610022651869,4.00959,1211.2,1210.3,56.5977]
[1610022661078,3.674,1212.0,1210.3,56.5977]
[1610022661877,4.00959,1211.7,1210.3,56.5977]
[1610022662177,3.674,1212.0,1210.3,56.5977]
[1610022662380,3.674,1212.0,1208.8,11.9903]
[1610022662577,3.674,1212.0,1211.2,59.1391]
[1610022667889,4.00959,1211.9,1211.2,59.1391]
[1610022674595,4.00959,1211.9,1209.7,11.8621]
[1610022674996,4.00959,1211.9,1210.1,55.1644]
[1610022675896,4.00959,1211.4,1210.1,55.1644]
[1610022678098,4.00959,1211.1,1210.1,55.1644]
[1610022678299,4.00959,1211.1,1209.7,11.8621]
[1610022678501,4.00959,1211.1,1209.8,59.0778]
[1610022682002,4.00959,1210.5,1209.8,59.0778]
[1610022682203,4.00959,1210.5,1209.7,62.2501]
[1610022683505,4.00959,1210.5,1209.7,56.5276]
[1610022684006,4.00959,1210.1,1209.7,56.5276]
[1610022684506,50.3024,1211.6,1209.7,56.5276]
[1610022686108,4.00959,1210.0,1209.7,56.5276]
[1610022686309,4.00959,1210.0,1209.2,46.9501]
[1610022687411,4.00959,1210.0,1208.6,12.0668]
[1610022687412,4.00959,1210.0,1208.6,5.9372]
[1610022687611,4.00959,1210.0,1203.5,22.043]
[1610022687810,4.00959,1210.0,1203.6,12.18]
[1610022688010,4.00959,1209.3,1205.9,61.3455]
[1610022688211,4.00959,1209.3,1203.6,6.2039]
[1610022688410,4.00959,1209.3,1205.8,57.8862]
[1610022688610,4.00959,1209.3,1203.5,22.043]
[1610022688810,4.00959,1209.3,1206.9,57.8152]
[1610022689010,4.00959,1209.3,1205.9,6.1054]
[1610022689213,4.00959,1209.3,1207.0,50.9329]
[1610022689412,4.00959,1209.3,1207.5,55.6879]
[1610022689813,4.00959,1209.3,1205.9,6.0579]
[1610022690014,4.00959,1209.6,1207.3,47.3553]
[1610022690215,4.00959,1209.6,1208.0,58.7333]
[1610022690413,4.00959,1209.6,1206.3,5.9012]
[1610022690613,4.00959,1209.6,1207.3,51.24]
[1610022690819,4.00959,1209.6,1204.6,3.674]
[1610022691014,4.00959,1209.6,1206.9,56.7999]
[1610022691413,4.00959,1209.6,1207.0,6.2611]
[1610022691613,4.00959,1209.6,1207.0,12.376]
[1610022692113,4.00959,1209.0,1207.0,12.376]
[1610022696022,6.5751,1210.9,1207.0,12.376]
[1610022696023,4.00959,1208.8,1207.0,12.376]
[1610022696224,4.00959,1208.8,1207.0,79.3381]
[1610022698026,4.00959,1208.1,1207.0,79.3381]
[1610022700031,4.00959,1207.8,1207.0,12.376]
[1610022700233,4.00959,1207.8,1207.0,6.2611]
[1610022701631,4.00959,1207.8,1206.6,59.4484]
[1610022702031,4.00959,1207.3,1206.6,59.4484]
[1610022702232,53.0029,1208.5,1206.6,59.4484]
[1610022702437,5.9475,1209.6,1205.5,6.2195]
[1610022702632,59.5897,1209.4,1206.1,52.5754]
[1610022703033,59.5897,1209.4,1206.2,5.7306]
[1610022703633,59.5897,1209.4,1206.3,5.9962]
[1610022704034,4.00959,1207.9,1206.8,51.9034]
[1610022704234,5.9475,1209.6,1206.8,51.9034]
[1610022706037,4.00959,1207.8,1206.8,51.9034]
[1610022706237,4.00959,1207.8,1206.3,5.9962]
[1610022706438,4.00959,1207.8,1206.3,52.4402]
[1610022707238,51.3728,1208.5,1206.3,52.4402]
[1610022708139,4.00959,1207.9,1206.3,52.4402]
[1610022709141,51.3728,1208.5,1206.3,52.4402]
[1610022710141,4.00959,1207.7,1206.3,52.4402]
[1610022710342,51.3728,1208.5,1206.3,52.4402]
[1610022712142,4.00959,1207.9,1206.3,52.4402]
[1610022714043,4.00959,1207.6,1206.3,52.4402]
[1610022715447,4.00959,1207.6,1206.3,46.444]
[1610022718051,55.0468,1208.5,1206.3,46.444]
[1610022718249,4.00959,1207.8,1206.3,46.444]
[1610022720152,4.00959,1207.5,1206.3,46.444]
[1610022723053,4.00959,1207.5,1206.2,5.7306]
[1610022723254,4.00959,1207.5,1205.7,51.5136]
[1610022724154,4.00959,1206.6,1205.7,51.5136]
[1610022725357,4.00959,1206.6,1205.1,6.2228]
[1610022725554,4.00959,1206.6,1205.2,55.7284]
[1610022726955,54.8501,1207.3,1205.2,55.7284]
[1610022728155,4.00959,1206.3,1205.2,55.7284]
[1610022730257,4.00959,1205.8,1204.7,6.0411]
[1610022731060,4.00959,1205.8,1204.6,55.5082]
[1610022731258,4.00959,1205.8,1203.6,12.2012]
[1610022731457,4.00959,1205.8,1203.9,52.1998]
[1610022731657,4.00959,1205.8,1203.6,57.8859]
[1610022732260,4.00959,1205.1,1203.6,57.8859]
[1610022732460,4.00959,1205.1,1203.6,5.9401]
[1610022733961,4.00959,1205.1,1203.7,52.9162]
[1610022734160,48.7582,1206.4,1203.7,52.9162]
[1610022736261,4.00959,1205.2,1203.7,52.9162]
[1610022737267,48.7582,1206.4,1203.7,52.9162]
[1610022738171,4.00959,1205.1,1203.7,52.9162]
[1610022739171,4.00959,1205.1,1203.6,5.9401]
[1610022739569,4.00959,1205.1,1203.6,15.2615]
[1610022740574,63.8451,1205.6,1203.6,15.2615]
[1610022742178,4.00959,1205.0,1203.6,15.2615]
[1610022744277,4.00959,1204.8,1203.6,15.2615]
[1610022746279,4.00959,1204.6,1203.6,15.2615]
[1610022746679,4.00959,1204.6,1203.6,9.3214]
[1610022746882,4.00959,1204.6,1202.0,6.0647]
[1610022747080,4.00959,1204.6,1202.1,58.7073]
[1610022748080,60.8176,1205.0,1202.1,58.7073]
[1610022748281,4.00959,1204.6,1202.1,58.7073]
[1610022751080,60.8176,1205.0,1202.1,58.7073]
[1610022752281,4.00959,1204.2,1202.1,58.7073]
[1610022754284,4.00959,1203.2,1202.1,58.7073]
[1610022754483,32.4131,1206.2,1198.7,11.051]
[1610022754683,55.5901,1203.7,1201.5,58.8203]
[1610022756388,4.00959,1203.4,1201.5,58.8203]
[1610022756591,4.00959,1203.4,1201.5,58.4203]
[1610022757488,55.5901,1203.7,1201.5,58.4203]
[1610022758290,59.59969,1203.7,1201.5,58.4203]
[1610022759791,4.00959,1203.7,1201.5,49.0486]
[1610022759991,5.9154,1205.5,1201.7,68.5003]
[1610022760192,5.9154,1205.5,1201.8,5.6933]
[1610022760393,4.00959,1204.3,1201.8,5.6933]
[1610022760591,5.9154,1205.5,1201.8,5.6933]
[1610022760792,5.9154,1205.5,1201.9,6.208]
[1610022761395,6.2528,1206.0,1201.9,6.208]
[1610022761793,53.2562,1206.7,1202.9,66.7166]
[1610022761996,47.5185,1206.6,1203.2,66.6034]
[1610022762395,4.00959,1204.4,1201.3,6.1342]
[1610022762595,4.00959,1204.4,1201.3,11.9132]
[1610022762795,4.00959,1204.4,1202.0,60.5564]
[1610022763195,4.00959,1204.4,1202.1,5.8807]
[1610022763395,62.7064,1205.5,1202.1,5.8807]
[1610022764199,62.7064,1205.5,1202.2,6.2501]
[1610022764398,4.00959,1204.5,1202.2,6.2501]
[1610022764699,62.7064,1205.5,1202.2,6.2501]
[1610022766301,4.00959,1204.0,1202.2,6.2501]
[1610022768301,62.7064,1205.5,1202.2,6.2501]
[1610022768511,73.6984,1205.5,1202.2,6.2501]
[1610022770507,7.68359,1204.3,1202.2,6.2501]
[1610022771905,3.674,1204.3,1202.2,6.2501]
[1610022772105,77.3724,1205.5,1202.2,6.2501]
[1610022772408,4.00959,1204.5,1202.2,6.2501]
[1610022772806,7.68359,1204.5,1202.2,6.2501]
[1610022773107,3.674,1204.5,1202.2,6.2501]
[1610022774206,14.666,1205.5,1203.1,64.9149]
[1610022774407,4.00959,1204.8,1203.1,64.9149]
[1610022774607,7.68359,1204.8,1203.1,64.9149]
[1610022775012,7.68359,1204.8,1202.2,6.2501]
[1610022775409,7.68359,1204.8,1203.0,57.0741]
[1610022776613,3.674,1204.8,1203.0,57.0741]
[1610022781620,3.674,1204.8,1202.2,6.2501]
[1610022781820,3.674,1204.8,1203.6,67.763]
[1610022783030,3.674,1205.7,1203.6,67.763]
[1610022783722,3.674,1205.7,1203.7,5.7835]
[1610022785627,3.674,1205.7,1204.4,53.7685]
[1610022785825,61.0035,1207.5,1204.4,53.7685]
[1610022786225,61.0035,1207.5,1204.5,6.1197]
[1610022786426,4.00959,1206.2,1204.5,6.1197]
[1610022786626,4.00959,1206.2,1204.6,5.7348]
[1610022786926,61.0035,1207.5,1204.6,5.7348]
[1610022787526,3.674,1207.5,1204.6,5.7348]
[1610022787728,3.674,1207.5,1205.1,60.5998]
[1610022788430,4.00959,1206.5,1205.1,60.5998]
[1610022788628,3.674,1206.5,1205.1,60.5998]
[1610022788828,22.043,1207.7,1205.1,60.5998]
[1610022789228,22.043,1207.7,1205.2,5.8821]
[1610022790433,4.00959,1207.0,1205.2,5.8821]
[1610022790830,22.043,1207.7,1205.2,5.8821]
[1610022792434,4.00959,1207.2,1205.2,5.8821]
[1610022792632,22.043,1207.7,1205.2,5.8821]
[1610022794336,11.051,1207.7,1205.2,5.8821]
[1610022800546,15.06059,1207.7,1205.2,5.8821]
[1610022801151,11.051,1207.7,1205.2,5.8821]
[1610022802543,4.00959,1208.4,1205.9,57.5387]
[1610022802746,4.00959,1208.4,1206.4,52.4661]
[1610022803141,22.043,1209.0,1206.4,52.4661]
[1610022803745,22.043,1209.0,1206.5,5.6718]
[1610022804543,4.00959,1208.8,1206.5,5.6718]
[1610022805342,22.043,1209.0,1206.5,5.6718]
[1610022806543,4.00959,1208.8,1206.5,5.6718]
[1610022807142,22.043,1209.0,1206.5,5.6718]
[1610022810644,4.00959,1208.9,1206.5,5.6718]
[1610022814549,4.00959,1208.6,1206.5,5.6718]
[1610022816950,22.043,1209.0,1206.5,5.6718]
[1610022818553,4.00959,1208.7,1206.5,5.6718]
[1610022821658,22.043,1209.0,1206.5,5.6718]
[1610022822556,4.00959,1208.7,1206.5,5.6718]
[1610022823259,22.043,1209.0,1206.5,5.6718]
[1610022824558,4.00959,1208.8,1206.5,5.6718]
[1610022825659,22.043,1209.0,1206.5,5.6718]
[1610022826761,26.05259,1209.0,1206.5,5.6718]
[1610022828062,22.043,1209.0,1206.5,5.6718]
[1610022828262,14.666,1209.0,1207.3,68.5402]
[1610022828463,14.666,1209.0,1206.5,5.6718]
[1610022828663,14.666,1209.0,1207.2,57.0835]
[1610022832871,14.666,1209.0,1206.5,5.6718]
[1610022833073,14.666,1209.0,1207.7,67.5124]
[1610022835572,14.666,1209.0,1206.5,5.6718]
[1610022835775,14.666,1209.0,1206.6,58.0876]
[1610022836774,4.00959,1208.2,1206.6,58.0876]
[1610022838574,14.666,1209.0,1206.6,58.0876]
[1610022838775,4.00959,1208.5,1206.6,58.0876]
[1610022840879,4.00959,1208.7,1206.6,58.0876]
[1610022842779,4.00959,1208.3,1206.6,58.0876]
[1610022842979,7.68359,1208.3,1206.6,58.0876]
[1610022843879,4.00959,1208.3,1206.6,58.0876]
[1610022844282,4.00959,1208.3,1206.6,38.0876]
[1610022845583,22.043,1209.0,1206.6,38.0876]
[1610022846783,4.00959,1208.8,1206.6,38.0876]
[1610022848784,4.00959,1208.6,1206.6,38.0876]
[1610022851088,22.043,1209.0,1206.6,38.0876]
[1610022851289,22.043,1209.0,1206.5,5.6718]
[1610022851689,22.043,1209.0,1207.3,53.2568]
[1610022852891,4.00959,1208.4,1207.3,53.2568]
[1610022853691,4.00959,1208.4,1207.3,43.2568]
[1610022853891,22.043,1209.0,1207.3,43.2568]
[1610022854891,4.00959,1208.6,1207.3,43.2568]
[1610022858595,22.043,1209.0,1207.3,43.2568]
[1610022858895,4.00959,1208.8,1207.3,43.2568]
[1610022860296,22.043,1209.0,1207.3,43.2568]
[1610022860898,26.05259,1209.0,1207.3,43.2568]
[1610022861299,15.06059,1209.0,1207.3,43.2568]
[1610022862701,11.38659,1209.0,1207.3,43.2568]
[1610022863101,15.06059,1209.0,1207.3,43.2568]
[1610022864101,11.38659,1209.0,1207.3,43.2568]
[1610022864503,15.06059,1209.0,1207.3,43.2568]
[1610022864802,4.00959,1209.0,1207.3,43.2568]
[1610022866202,7.68359,1209.0,1207.3,43.2568]
[1610022866402,4.00959,1209.0,1207.3,43.2568]
[1610022866702,7.68359,1209.0,1207.3,43.2568]
[1610022867003,3.674,1209.0,1207.3,43.2568]
[1610022867202,60.1667,1209.7,1207.3,43.2568]
[1610022867404,3.674,1209.7,1206.5,5.6718]
[1610022867606,3.674,1209.7,1207.5,64.0211]
[1610022867807,3.674,1209.7,1206.5,5.6718]
[1610022868010,3.674,1209.7,1208.0,55.5855]
[1610022869110,4.00959,1209.4,1208.0,55.5855]
[1610022869613,22.043,1210.3,1208.0,55.5855]
[1610022870012,22.043,1210.3,1208.1,6.2292]
[1610022871011,4.00959,1210.0,1208.1,6.2292]
[1610022872010,4.00959,1210.0,1208.7,47.316]
[1610022873312,11.051,1210.3,1208.7,47.316]
[1610022874413,3.674,1210.3,1208.7,47.316]
[1610022875015,4.00959,1210.0,1208.7,47.316]
[1610022876114,3.674,1210.3,1208.7,47.316]
[1610022877113,4.00959,1210.0,1208.7,47.316]
[1610022877314,4.00959,1210.0,1208.1,6.2292]
[1610022877516,4.00959,1210.0,1208.3,58.4495]
[1610022877713,11.38659,1210.0,1208.3,58.4495]
[1610022878719,8.1939,1209.9,1208.3,58.4495]
[1610022879118,4.00959,1209.1,1208.3,58.4495]
[1610022879316,48.6862,1209.7,1207.9,55.7666]
[1610022883120,4.00959,1208.8,1207.9,55.7666]
[1610022884124,4.00959,1208.8,1056.1,0.59511604]
[1610022884324,3.674,1208.7,1202.9,5.76]
[1610022884524,72.212,1208.7,1204.5,54.1909]
[1610022884924,72.212,1208.7,1204.6,5.8435]
[1610022885125,4.00959,1208.2,1204.6,5.8435]
[1610022885324,4.00959,1208.2,1204.6,12.1333]
[1610022886429,72.212,1208.7,1204.6,12.1333]
[1610022886625,3.674,1208.7,1204.6,12.1333]
[1610022886826,3.674,1208.7,1205.7,55.5641]
[1610022887228,4.00959,1208.4,1205.8,5.7909]
[1610022887628,4.00959,1208.4,1205.8,11.5638]
[1610022887928,3.674,1208.7,1205.8,11.5638]
[1610022889129,4.00959,1208.5,1205.8,11.5638]
[1610022890329,3.674,1208.7,1205.8,11.5638]
[1610022890529,3.674,1208.7,1206.7,47.3915]
[1610022890930,57.9428,1209.8,1206.8,5.7101]
[1610022891131,4.00959,1209.4,1206.8,5.7101]
[1610022892731,4.00959,1209.4,1206.8,11.91]
[1610022893130,4.00959,1209.0,1206.8,11.91]
[1610022893335,7.68359,1209.0,1206.8,11.91]
[1610022895135,4.00959,1208.8,1206.8,11.91]
[1610022897141,4.00959,1208.5,1206.8,11.91]
[1610022900240,3.674,1209.0,1206.8,11.91]
[1610022901141,4.00959,1208.9,1206.8,11.91]
[1610022903143,4.00959,1208.6,1206.8,11.91]
[1610022905150,4.00959,1208.4,1206.8,11.91]
[1610022908551,3.674,1209.0,1206.8,11.91]
[1610022909152,4.00959,1208.9,1206.8,11.91]
[1610022910457,4.00959,1208.9,1207.5,50.6862]
[1610022910660,4.00959,1208.9,1206.8,11.91]
[1610022910859,4.00959,1208.9,1207.4,66.447]
[1610022911061,4.00959,1208.9,1206.8,11.91]
[1610022911260,4.00959,1208.9,1207.7,58.0958]
[1610022915164,4.00959,1208.4,1207.7,58.0958]
[1610022916566,3.674,1209.0,1207.7,58.0958]
[1610022917170,4.00959,1208.7,1207.7,58.0958]
[1610022920074,4.00959,1208.7,1206.8,5.7101]
[1610022920275,4.00959,1208.7,1206.8,72.7808]
[1610022921177,4.00959,1208.3,1206.8,72.7808]
[1610022921777,7.68359,1208.3,1206.8,72.7808]
[1610022922380,4.00959,1208.3,1206.8,72.7808]
[1610022922582,7.68359,1208.3,1206.8,72.7808]
[1610022926390,7.68359,1208.3,1206.8,67.0707]
[1610022927291,3.674,1208.3,1206.8,67.0707]
[1610022929390,4.00959,1208.1,1206.8,67.0707]
[1610022930693,3.674,1208.3,1206.8,67.0707]
[1610022931394,7.68359,1208.3,1206.8,67.0707]
[1610022933297,4.00959,1207.8,1206.8,67.0707]
[1610022935499,3.674,1208.3,1206.8,67.0707]
[1610022937402,4.00959,1207.3,1206.8,67.0707]
[1610022938402,4.00959,1207.3,1205.5,11.836]
[1610022938804,4.00959,1207.3,1205.8,47.7873]
[1610022939402,4.00959,1207.0,1205.8,47.7873]
[1610022940404,62.3493,1208.1,1205.8,47.7873]
[1610022940808,3.674,1208.3,1205.5,11.836]
[1610022941007,3.674,1208.3,1206.5,67.6497]
[1610022941409,4.00959,1207.7,1206.5,67.6497]
[1610022941708,3.674,1208.3,1206.5,67.6497]
[1610022945309,4.00959,1208.2,1206.5,67.6497]
[1610022949413,4.00959,1207.9,1206.5,67.6497]
[1610022955417,3.674,1208.3,1206.5,67.6497]
[1610022957518,4.00959,1208.1,1206.5,67.6497]
[1610022960622,11.38659,1208.1,1206.5,67.6497]
[1610022961525,4.00959,1207.9,1206.5,67.6497]
[1610022962326,4.00959,1207.9,1205.5,11.836]
[1610022962525,4.00959,1207.9,1205.7,50.7418]
[1610022963428,4.00959,1207.4,1205.7,50.7418]
[1610022963628,7.68359,1207.4,1205.7,50.7418]
[1610022964228,4.00959,1207.4,1205.7,50.7418]
[1610022965430,4.00959,1207.0,1205.7,50.7418]
[1610022966328,55.0675,1208.0,1205.7,50.7418]
[1610022967529,4.00959,1207.0,1205.7,50.7418]
[1610022968031,55.0675,1208.0,1205.7,50.7418]
[1610022969532,4.00959,1206.9,1205.7,50.7418]
[1610022969734,55.0675,1208.0,1205.7,50.7418]
[1610022970332,3.674,1208.0,1205.5,11.836]
[1610022970734,3.674,1208.0,1206.1,64.4049]
[1610022971532,4.00959,1207.0,1206.1,64.4049]
[1610022979442,4.00959,1206.8,1206.1,64.4049]
[1610022981048,4.00959,1206.8,1204.6,11.8807]
[1610022981254,4.00959,1206.8,1204.9,66.0986]
[1610022981649,4.00959,1206.3,1204.9,66.0986]
[1610022983552,4.00959,1206.0,1204.9,66.0986]
[1610022986757,4.00959,1206.0,1203.5,11.5961]
[1610022986958,4.00959,1206.0,1204.7,56.1819]
[1610022987559,4.00959,1205.3,1204.7,56.1819]
[1610022988058,4.00959,1205.3,1203.5,11.5961]
[1610022988457,4.00959,1205.3,1203.8,58.1412]
[1610022989461,51.9214,1205.9,1203.8,58.1412]
[1610022989663,3.674,1207.1,1203.5,11.5961]
[1610022989863,3.674,1207.1,1204.4,56.0897]
[1610022991567,4.00959,1205.3,1204.4,56.0897]
[1610022991767,4.00959,1205.3,1203.5,11.5961]
[1610022991966,4.00959,1205.3,1204.3,48.4113]
[1610022992968,53.9308,1205.9,1204.3,48.4113]
[1610022993568,4.00959,1205.6,1204.3,48.4113]
[1610022995673,53.9308,1205.9,1204.3,48.4113]
[1610022997573,4.00959,1204.8,1204.3,48.4113]
[1610023000576,57.6048,1205.9,1204.3,48.4113]
[1610023000780,3.674,1205.9,1203.5,5.6928]
[1610023000977,3.674,1205.9,1204.7,51.4882]
[1610023001677,4.00959,1205.6,1204.7,51.4882]
[1610023002579,3.674,1205.9,1204.7,51.4882]
[1610023002777,3.674,1205.9,1203.5,5.6928]
[1610023002977,3.674,1205.9,1204.6,46.5747]
[1610023003578,7.68359,1205.9,1204.6,46.5747]
[1610023003778,3.674,1205.9,1204.6,46.5747]
[1610023004181,7.377,1207.2,1203.5,5.6928]
[1610023004182,11.051,1207.2,1203.5,5.6928]
[1610023004382,11.051,1207.2,1205.5,50.014]
[1610023005582,4.00959,1206.3,1205.5,50.014]
[1610023006383,4.00959,1206.3,1203.8,6.1355]
[1610023006582,4.00959,1206.3,1204.6,47.182]
[1610023006782,7.68359,1206.3,1204.6,47.182]
[1610023007383,15.06059,1206.3,1204.6,47.182]
[1610023007583,4.00959,1205.9,1204.6,47.182]
[1610023009285,4.00959,1205.9,1203.8,6.1355]
[1610023009485,4.00959,1205.9,1204.0,52.0295]
[1610023009685,4.00959,1205.4,1204.0,52.0295]
[1610023010987,67.1322,1206.2,1204.0,52.0295]
[1610023011586,4.00959,1205.4,1204.0,52.0295]
[1610023012189,67.1322,1206.2,1204.0,52.0295]
[1610023012389,3.674,1206.2,1203.8,6.1355]
[1610023012594,3.674,1206.2,1204.5,57.7967]
[1610023012792,3.674,1206.2,1203.8,6.1355]
[1610023013193,3.674,1206.2,1204.5,60.0496]
[1610023013394,3.674,1206.2,1203.8,6.1355]
[1610023013594,3.674,1206.2,1204.5,61.0415]
[1610023013793,3.674,1206.2,1203.8,6.1355]
[1610023013993,3.674,1206.2,1204.9,52.0082]
[1610023015696,7.68359,1206.2,1204.9,52.0082]
[1610023019097,7.68359,1206.2,1203.8,6.1355]
[1610023019298,7.68359,1206.2,1204.0,50.2793]
[1610023019698,4.00959,1205.5,1204.0,50.2793]
[1610023019899,7.68359,1205.5,1204.0,50.2793]
[1610023025803,3.674,1205.5,1204.0,50.2793]
[1610023026005,3.674,1205.5,1203.8,6.1355]
[1610023026206,11.051,1206.3,1204.7,57.0858]
[1610023026706,11.051,1206.3,1203.8,6.1355]
[1610023027111,3.674,1206.3,1203.8,6.1355]
[1610023027310,3.674,1206.3,1205.0,56.9836]
[1610023027509,3.674,1206.3,1203.8,6.1355]
[1610023027706,3.674,1206.3,1205.6,63.3018]
[1610023029610,11.051,1207.4,1205.6,63.3018]
[1610023029812,4.00959,1207.0,1204.4,11.8152]
[1610023030010,4.00959,1207.0,1206.2,56.6395]
[1610023033109,11.051,1207.4,1206.2,56.6395]
[1610023033712,4.00959,1207.2,1206.2,56.6395]
[1610023035812,4.00959,1206.9,1206.2,56.6395]
[1610023036011,11.051,1207.4,1206.2,56.6395]
[1610023037712,4.00959,1207.2,1206.2,56.6395]
[1610023041815,4.00959,1207.0,1206.2,56.6395]
[1610023042213,11.051,1207.4,1206.2,56.6395]
[1610023043814,4.00959,1207.2,1206.2,56.6395]
[1610023044513,11.051,1207.4,1206.2,56.6395]
[1610023045816,4.00959,1207.2,1206.2,56.6395]
[1610023046616,11.051,1207.4,1206.2,56.6395]
[1610023047818,4.00959,1207.3,1206.2,56.6395]
[1610023049921,4.00959,1206.8,1206.2,56.6395]
[1610023050121,4.00959,1206.8,1204.4,11.8152]
[1610023050521,4.00959,1206.8,1205.3,47.0305]
[1610023052725,4.00959,1206.8,1204.4,11.8152]
[1610023052930,11.051,1207.4,1205.8,59.9281]
[1610023053126,11.051,1207.4,1204.4,11.8152]
[1610023053330,11.051,1207.4,1206.5,59.4736]
[1610023055827,4.00959,1206.9,1206.5,59.4736]
[1610023056531,11.051,1207.4,1206.5,59.4736]
[1610023057832,4.00959,1207.1,1206.5,59.4736]
[1610023061739,11.051,1207.4,1206.5,59.4736]
[1610023061941,4.00959,1207.3,1206.5,59.4736]
[1610023065143,4.00959,1207.3,1205.1,12.132]
[1610023065343,4.00959,1207.3,1206.3,49.1211]
[1610023065943,4.00959,1206.7,1206.3,49.1211]
[1610023066943,11.051,1207.4,1206.3,49.1211]
[1610023067945,4.00959,1206.8,1206.3,49.1211]
[1610023069947,4.00959,1206.6,1205.1,12.132]
[1610023070346,7.68359,1206.6,1205.1,6.2089]
[1610023070948,7.68359,1206.6,1205.0,56.3017]
[1610023071951,4.00959,1206.2,1205.0,56.3017]
[1610023074652,3.674,1206.6,1205.0,56.3017]
[1610023075054,3.674,1206.6,1204.1,12.102]
[1610023075254,3.674,1206.6,1205.1,65.3144]
[1610023075454,3.674,1206.6,1204.1,12.102]
[1610023075658,3.674,1206.6,1205.7,51.3299]
[1610023075857,3.674,1206.6,1204.4,155.6659]
[1610023075858,3.674,1206.6,1204.1,12.102]
[1610023076055,4.00959,1206.4,1204.5,52.2031]
[1610023078056,4.00959,1206.2,1204.5,52.2031]
[1610023078256,3.674,1206.6,1204.5,52.2031]
[1610023080059,4.00959,1206.5,1204.5,52.2031]
[1610023081159,3.674,1206.6,1204.5,52.2031]
[1610023082062,4.00959,1206.2,1204.5,52.2031]
[1610023084168,4.00959,1205.8,1204.5,52.2031]
[1610023086070,4.00959,1205.6,1204.5,52.2031]
[1610023087973,3.674,1206.6,1204.5,52.2031]
[1610023090075,4.00959,1205.9,1204.5,52.2031]
[1610023090283,3.674,1206.6,1204.5,52.2031]
[1610023090776,3.674,1206.6,1204.1,12.102]
[1610023090975,3.674,1206.6,1204.9,65.938]
[1610023091278,3.674,1206.6,1204.1,12.102]
[1610023091477,3.674,1206.6,1204.9,50.6509]
[1610023091680,3.674,1206.6,1204.1,12.102]
[1610023091878,3.674,1206.6,1204.8,55.1251]
[1610023092079,3.674,1206.6,1204.1,12.102]
[1610023092281,3.674,1206.6,1205.4,58.3877]
[1610023095384,11.051,1207.4,1205.4,58.3877]
[1610023096182,4.00959,1207.2,1205.4,58.3877]
[1610023096983,11.051,1207.4,1205.4,58.3877]
[1610023097183,11.051,1207.4,1204.1,12.102]
[1610023097384,11.051,1207.4,1205.6,63.6761]
[1610023097583,11.051,1207.4,1204.1,12.102]
[1610023097783,11.051,1207.4,1206.2,69.1528]
[1610023098383,3.674,1207.4,1204.9,5.9225]
[1610023098583,3.674,1207.4,1206.2,48.6503]
[1610023112601,7.68359,1208.2,1206.2,48.6503]
[1610023113701,7.68359,1208.2,1204.9,11.8119]
[1610023114101,7.68359,1208.2,1206.2,65.8936]
[1610023114302,4.00959,1208.0,1206.2,65.8936]
[1610023115302,3.674,1208.2,1204.9,11.8119]
[1610023115501,3.674,1208.2,1206.2,66.9758]
[1610023115903,3.674,1208.2,1206.3,6.0875]
[1610023116101,3.674,1208.2,1206.9,55.7596]
[1610023118413,4.00959,1208.9,1206.9,55.7596]
[1610023118613,4.00959,1208.9,1206.3,6.0875]
[1610023118814,4.00959,1208.9,1207.5,63.3749]
[1610023120419,4.00959,1208.7,1207.5,63.3749]
[1610023122318,4.00959,1208.4,1207.5,63.3749]
[1610023124118,11.051,1209.0,1207.5,63.3749]
[1610023124319,4.00959,1208.6,1207.5,63.3749]
[1610023126524,4.00959,1208.3,1207.5,63.3749]
[1610023126724,4.00959,1208.3,1206.4,6.1857]
[1610023126924,7.68359,1208.3,1206.4,6.1857]
[1610023127124,7.68359,1208.3,1207.3,53.9809]
[1610023127324,4.00959,1208.3,1207.3,53.9809]
[1610023127524,4.00959,1208.3,1206.4,6.1857]
[1610023127724,7.68359,1208.3,1207.5,58.1317]
[1610023127924,4.00959,1208.3,1207.5,58.1317]
[1610023128427,4.00959,1208.1,1207.5,58.1317]
[1610023131732,3.98882933,1208.1,1207.5,58.1317]
[1610023132533,7.66282933,1208.1,1206.3,6.0875]
[1610023132731,7.66282933,1208.1,1206.5,60.5429]
[1610023134693,3.674,1208.1,1206.5,60.5429]
[1610023134838,3.674,1208.1,1207.1,60.9545]
[1610023136440,4.00959,1207.8,1207.1,60.9545]
[1610023137741,4.00959,1207.8,1206.3,6.0875]
[1610023138042,4.00959,1207.8,1206.5,54.349]
[1610023138442,4.00959,1207.6,1206.5,54.349]
[1610023140443,4.00959,1207.2,1206.5,54.349]
[1610023142193,11.051,1208.1,1206.5,54.349]
[1610023142545,4.00959,1206.9,1206.5,54.349]
[1610023142844,4.00959,1206.9,1206.5,54.34216503]
[1610023143048,11.051,1208.1,1206.5,54.34216503]
[1610023144546,4.00959,1207.4,1206.5,54.34216503]
[1610023152156,11.051,1208.1,1206.5,54.34216503]
[1610023152353,11.051,1208.1,1205.5,11.7276]